bitfinex/quotes_BTCUSD_20250131
["timestamp","ask_amount","ask_price","bid_price","bid_amount"]
[1738309645981,0.95691557,104300.0,104290.0,0.22930146]
[1738309646771,0.87583965,104300.0,104290.0,0.22930146]
[1738309647612,0.95691557,104300.0,104290.0,0.22930146]
[1738309647968,0.95691557,104300.0,104290.0,0.15311751]
[1738309651060,0.72242694,104300.0,104290.0,0.15311751]
[1738309653262,0.72142694,104300.0,104290.0,0.15411751]
[1738309653464,0.72142694,104300.0,104290.0,0.15611751]
[1738309653618,0.72142694,104300.0,104290.0,0.15511751]
[1738309653818,0.72142694,104300.0,104290.0,0.15311751]
[1738309654247,0.72142694,104300.0,104290.0,0.23697171]
[1738309654651,0.72242694,104300.0,104290.0,0.23697171]
[1738309655063,0.72142694,104300.0,104290.0,0.23697171]
[1738309655689,0.72142694,104300.0,104290.0,0.15411751]
[1738309656097,0.72142694,104300.0,104290.0,0.15311751]
[1738309656299,0.72142694,104300.0,104290.0,0.23621751]
[1738309656557,0.72142694,104300.0,104290.0,0.23721751]
[1738309656764,0.72142694,104300.0,104290.0,0.23521751]
[1738309657590,0.72142694,104300.0,104290.0,0.30806354]
[1738309662088,0.72142694,104300.0,104290.0,0.23721751]
[1738309664613,0.72142694,104300.0,104290.0,0.15611751]
[1738309666610,0.86524194,104300.0,104290.0,0.15611751]
[1738309668248,0.72142694,104300.0,104290.0,0.15611751]
[1738309669714,0.86524194,104300.0,104290.0,0.15611751]
[1738309670957,0.86524194,104300.0,104290.0,0.19113875]
[1738309671175,0.86524194,104300.0,104290.0,0.15611751]
[1738309672054,0.94631786,104300.0,104290.0,0.15611751]
[1738309672206,0.94631786,104300.0,104290.0,0.01228851]
[1738309672419,1.02467786,104300.0,104290.0,0.01228851]
[1738309674651,1.02467786,104300.0,104290.0,0.01128851]
[1738309675997,1.02467786,104300.0,104290.0,0.00928851]
[1738309676447,1.02567786,104300.0,104290.0,0.00928851]
[1738309676798,1.10675378,104300.0,104290.0,0.00928851]
[1738309677390,1.15285378,104300.0,104290.0,0.00928851]
[1738309680245,1.2339297,104300.0,104290.0,0.00928851]
[1738309680875,1.2569297,104300.0,104290.0,0.00928851]
[1738309681049,1.17585378,104300.0,104290.0,0.00928851]
[1738309681280,1.2569297,104300.0,104290.0,0.00928851]
[1738309682767,1.2559297,104300.0,104290.0,0.00928851]
[1738309682960,1.2599297,104300.0,104290.0,0.00928851]
[1738309683262,1.2983187,104300.0,104290.0,0.00928851]
[1738309684270,1.2993187,104300.0,104290.0,0.00928851]
[1738309686089,1.2943187,104300.0,104290.0,0.00928851]
[1738309688147,1.2933187,104300.0,104290.0,0.00928851]
[1738309688540,1.3023187,104300.0,104290.0,0.00928851]
[1738309689116,1.2983187,104300.0,104290.0,0.00928851]
[1738309689511,1.3073187,104300.0,104290.0,0.00928851]
[1738309689889,1.2893187,104300.0,104290.0,0.00928851]
[1738309690064,1.3073187,104300.0,104290.0,0.00928851]
[1738309695885,1.22624278,104300.0,104290.0,0.00928851]
[1738309696062,1.23248278,104300.0,104290.0,0.00928851]
[1738309697050,1.22624278,104300.0,104290.0,0.00928851]
[1738309697258,1.23248278,104300.0,104290.0,0.00928851]
[1738309697470,0.97484278,104300.0,104290.0,0.00928851]
[1738309697634,0.93498278,104300.0,104290.0,0.00928851]
[1738309697849,1.08498278,104300.0,104290.0,0.00928851]
[1738309698052,0.95798278,104300.0,104290.0,0.00928851]
[1738309698457,1.10798278,104300.0,104290.0,0.00928851]
[1738309698659,1.18424278,104300.0,104290.0,0.00928851]
[1738309698876,1.19048278,104300.0,104290.0,0.00928851]
[1738309699867,1.23828278,104300.0,104290.0,0.00928851]
[1738309700045,1.3193587,104300.0,104290.0,0.00928851]
[1738309701237,1.3131187,104300.0,104290.0,0.00928851]
[1738309701430,1.3193587,104300.0,104290.0,0.00928851]
[1738309704303,1.34515297,104300.0,104290.0,0.00928851]
[1738309704579,1.3193587,104300.0,104290.0,0.00928851]
[1738309709523,1.37089719,104300.0,104290.0,0.00928851]
[1738309711486,1.36465719,104300.0,104290.0,0.00928851]
[1738309711692,1.37089719,104300.0,104290.0,0.00928851]
[1738309713811,0.023,104280.0,104260.0,0.000122]
[1738309714025,0.47313011,104270.0,104260.0,0.000122]
[1738309714221,0.94106366,104270.0,104260.0,0.000122]
[1738309714621,0.94730366,104270.0,104260.0,0.000122]
[1738309715075,0.94730366,104270.0,104260.0,0.00026672]
[1738309715280,0.94830366,104270.0,104260.0,0.00026672]
[1738309716090,1.05137958,104270.0,104260.0,0.00026672]
[1738309716294,1.05237958,104270.0,104260.0,0.00026672]
[1738309716674,1.05137958,104270.0,104260.0,0.00026672]
[1738309717841,1.05237958,104270.0,104260.0,0.00026672]
[1738309717988,1.05637958,104270.0,104260.0,0.00026672]
[1738309718829,1.06603874,104270.0,104260.0,0.00026672]
[1738309720190,1.08525134,104270.0,104260.0,0.00026672]
[1738309724892,1.16735134,104270.0,104260.0,0.00026672]
[1738309730803,0.316871,104260.0,104250.0,0.01594699]
[1738309731061,1.04515358,104260.0,104250.0,0.01599514]
[1738309732935,1.04615358,104260.0,104250.0,0.01599514]
[1738309733158,1.04611358,104260.0,104250.0,0.01599514]
[1738309734269,1.05111358,104260.0,104250.0,0.01599514]
[1738309734571,1.06011358,104260.0,104250.0,0.01599514]
[1738309736113,1.05411358,104260.0,104250.0,0.01599514]
[1738309736257,1.06311358,104260.0,104250.0,0.01599514]
[1738309736664,1.06935358,104260.0,104250.0,0.01599514]
[1738309739749,1.04639358,104260.0,104250.0,0.09119514]
[1738309740129,1.04639358,104260.0,104250.0,0.01599514]
[1738309740331,1.14909358,104260.0,104250.0,0.01599514]
[1738309740783,1.06939358,104260.0,104250.0,0.01599514]
[1738309743581,1.1504695,104260.0,104250.0,0.01599514]
[1738309743797,1.06939358,104260.0,104250.0,0.01599514]
[1738309746312,0.37497392,104240.0,104230.0,0.1261]
[1738309746527,0.37497392,104240.0,104230.0,0.12614817]
[1738309746528,0.94110466,104240.0,104230.0,0.12614817]
[1738309748792,0.95063966,104240.0,104230.0,0.12614817]
[1738309749361,0.95163966,104240.0,104230.0,0.12614817]
[1738309750820,1.03271558,104240.0,104230.0,0.12614817]
[1738309752932,1.05571558,104240.0,104230.0,4.817e-05]
[1738309753555,1.05571558,104240.0,104230.0,0.00017007]
[1738309757978,1.13111558,104240.0,104230.0,0.00017007]
[1738309759180,1.14991119,104240.0,104230.0,0.00017007]
[1738309759307,1.14891119,104240.0,104230.0,0.00017007]
[1738309759733,1.23098711,104240.0,104230.0,0.00017007]
[1738309759933,1.22998711,104240.0,104230.0,0.00017007]
[1738309760420,1.15291119,104240.0,104230.0,0.00017007]
[1738309760929,1.15391119,104240.0,104230.0,0.00017007]
[1738309761554,1.23498711,104240.0,104230.0,0.00017007]
[1738309761870,0.32906384,104230.0,104220.0,3.182e-05]
[1738309762078,0.89519458,104230.0,104220.0,8.004e-05]
[1738309762917,0.89519458,104230.0,104220.0,4.822e-05]
[1738309763982,0.89619458,104230.0,104220.0,4.822e-05]
[1738309765571,0.89619458,104230.0,104220.0,0.00017012]
[1738309766665,1.04619458,104230.0,104220.0,0.00017012]
[1738309767053,1.02319458,104230.0,104220.0,0.00017012]
[1738309767781,1.02951458,104230.0,104220.0,0.00017012]
[1738309769003,0.94843866,104230.0,104220.0,0.00017012]
[1738309771599,0.94843866,104230.0,104220.0,0.08307012]
[1738309772441,0.94843866,104230.0,104220.0,0.00017012]
[1738309775078,0.94211866,104230.0,104220.0,0.00017012]
[1738309775262,0.94839866,104230.0,104220.0,0.00017012]
[1738309779771,0.94865486,104230.0,104220.0,0.00017012]
[1738309783007,0.94237486,104230.0,104220.0,0.08107012]
[1738309784163,0.94237486,104230.0,104220.0,0.00017012]
[1738309785015,0.94865486,104230.0,104220.0,0.00017012]
[1738309786504,1.02973078,104230.0,104220.0,0.00017012]
[1738309787119,0.94865486,104230.0,104220.0,0.00017012]
[1738309787547,1.02973078,104230.0,104220.0,0.00017012]
[1738309789808,0.94237486,104230.0,104220.0,0.00017012]
[1738309790017,0.94237486,104230.0,104220.0,0.07947012]
[1738309790217,0.94237486,104230.0,104220.0,0.00017012]
[1738309793095,0.94865486,104230.0,104220.0,0.00017012]
[1738309793307,1.05273078,104230.0,104220.0,0.00017012]
[1738309793822,1.13539078,104230.0,104220.0,0.00017012]
[1738309798384,0.023,104220.0,104210.0,9.616e-05]
[1738309798591,0.023,104220.0,104210.0,0.00014424]
[1738309798592,0.89616261,104220.0,104210.0,0.00014424]
[1738309798771,0.89520858,104220.0,104210.0,0.00014424]
[1738309800005,0.90148858,104220.0,104210.0,0.00014424]
[1738309800231,1.17888858,104220.0,104210.0,0.00014424]
[1738309801456,1.17988858,104220.0,104210.0,0.00014424]
[1738309801847,1.17888858,104220.0,104210.0,0.00014424]
[1738309802058,1.18288858,104220.0,104210.0,0.00014424]
[1738309803444,1.2649645,104220.0,104210.0,0.00014424]
[1738309803970,1.18388858,104220.0,104210.0,0.00014424]
[1738309804204,1.20274412,104220.0,104210.0,0.00014424]
[1738309804816,1.2121715,104220.0,104210.0,0.00014424]
[1738309805964,1.29324742,104220.0,104210.0,0.00014424]
[1738309807239,1.2058915,104220.0,104210.0,0.00014424]
[1738309807394,1.2122115,104220.0,104210.0,0.00014424]
[1738309807873,1.29328742,104220.0,104210.0,0.00014424]
[1738309808064,1.2122115,104220.0,104210.0,0.00014424]
[1738309808282,1.29328742,104220.0,104210.0,0.00014424]
[1738309808668,1.2122115,104220.0,104210.0,0.00014424]
[1738309813380,1.29328742,104220.0,104210.0,0.00014424]
[1738309813899,1.29354341,104220.0,104210.0,0.00014424]
[1738309819970,1.34685785,104220.0,104210.0,0.00014424]
[1738309821453,1.29354341,104220.0,104210.0,0.00014424]
[1738309822708,1.34685785,104220.0,104210.0,0.00014424]
[1738309823059,1.34681785,104220.0,104210.0,0.00014424]
[1738309823188,1.34581785,104220.0,104210.0,0.00014424]
[1738309823666,1.35481785,104220.0,104210.0,0.00014424]
[1738309824165,1.34581785,104220.0,104210.0,0.00014424]
[1738309824662,1.34181785,104220.0,104210.0,0.00014424]
[1738309825195,1.35981785,104220.0,104210.0,0.00014424]
[1738309827827,0.44574,104210.0,104200.0,0.27632301]
[1738309828055,1.2550985,104210.0,104200.0,0.12616257]
[1738309829243,1.2630985,104210.0,104200.0,0.12616257]
[1738309829465,1.2720985,104210.0,104200.0,0.12616257]
[1738309829696,1.2720985,104210.0,104200.0,0.08625257]
[1738309829895,1.2703785,104210.0,104200.0,0.08625257]
[1738309830095,1.2793785,104210.0,104200.0,0.08625257]
[1738309830673,1.2613785,104210.0,104200.0,0.08625257]
[1738309831118,1.2703785,104210.0,104200.0,0.08625257]
[1738309831464,1.2640985,104210.0,104200.0,0.04684257]
[1738309831663,1.2703785,104210.0,104200.0,0.04684257]
[1738309831884,1.2793785,104210.0,104200.0,0.04684257]
[1738309833400,0.449253,104200.0,104190.0,0.46]
[1738309833525,1.30856096,104200.0,104190.0,0.44861]
[1738309834138,1.30856096,104200.0,104190.0,0.44373477]
[1738309834554,1.31756096,104200.0,104190.0,0.44373477]
[1738309834962,1.30856096,104200.0,104190.0,0.44373477]
[1738309835185,1.31756096,104200.0,104190.0,0.44373477]
[1738309835941,1.30856096,104200.0,104190.0,0.44373477]
[1738309836085,1.32384096,104200.0,104190.0,0.44373477]
[1738309836286,1.33284096,104200.0,104190.0,0.44373477]
[1738309836947,1.64284096,104200.0,104190.0,0.19257051]
[1738309837149,1.63284096,104200.0,104190.0,0.19257051]
[1738309837345,1.64284096,104200.0,104190.0,0.19257051]
[1738309837596,1.64284096,104200.0,104190.0,0.19269241]
[1738309838454,1.66206189,104200.0,104190.0,0.19269241]
[1738309839244,1.76306189,104200.0,104190.0,0.19269241]
[1738309840295,0.02,104180.0,104160.0,0.04076839]
[1738309840506,0.75921995,104170.0,104160.0,0.00955802]
[1738309840718,0.66347,104170.0,104160.0,0.00955802]
[1738309840928,1.12607758,104170.0,104160.0,0.00955802]
[1738309841134,1.13235758,104170.0,104160.0,0.00955802]
[1738309841357,1.2134335,104170.0,104160.0,0.00955802]
[1738309841784,1.13235758,104170.0,104160.0,0.01004062]
[1738309842273,1.2314335,104170.0,104160.0,0.01004062]
[1738309842753,1.15035758,104170.0,104160.0,0.01004062]
[1738309843097,1.14407758,104170.0,104160.0,0.01004062]
[1738309843315,1.15035758,104170.0,104160.0,0.01004062]
[1738309843561,0.80920166,104170.0,104160.0,0.01004062]
[1738309843807,0.80920166,104170.0,104160.0,0.08714062]
[1738309844034,0.81548166,104170.0,104160.0,0.08714062]
[1738309844666,0.80020166,104170.0,104160.0,0.08714062]
[1738309844878,0.57513074,104170.0,104160.0,0.13544062]
[1738309845088,0.80020166,104170.0,104160.0,0.13544062]
[1738309845308,0.87227758,104170.0,104160.0,0.13544062]
[1738309845557,0.88127758,104170.0,104160.0,0.13544062]
[1738309845776,0.94220166,104170.0,104160.0,0.13544062]
[1738309846013,0.79220166,104170.0,104160.0,0.13544062]
[1738309846385,0.94120166,104170.0,104160.0,0.13544062]
[1738309846592,0.98408717,104170.0,104160.0,0.13544062]
[1738309847985,0.98508717,104170.0,104160.0,0.13644062]
[1738309850107,1.1153286,104170.0,104160.0,0.01104062]
[1738309850334,0.98508717,104170.0,104160.0,0.01116252]
[1738309850534,1.01436717,104170.0,104160.0,0.01116252]
[1738309851139,1.01436717,104170.0,104160.0,0.01016252]
[1738309851355,0.99136717,104170.0,104160.0,0.01016252]
[1738309851657,0.99036717,104170.0,104160.0,0.01116252]
[1738309852195,0.99436717,104170.0,104160.0,0.01116252]
[1738309852418,1.00420616,104170.0,104160.0,0.01016252]
[1738309853035,1.00520616,104170.0,104160.0,0.01016252]
[1738309853858,0.99892616,104170.0,104160.0,0.01016252]
[1738309854065,0.99536717,104170.0,104160.0,0.01016252]
[1738309854487,0.86508574,104170.0,104160.0,0.01016252]
[1738309854634,0.86508574,104170.0,104160.0,0.13426252]
[1738309854862,1.1130086,104170.0,104160.0,0.13426252]
[1738309855082,0.98904717,104170.0,104160.0,0.01016252]
[1738309855328,1.1120086,104170.0,104160.0,0.01016252]
[1738309855535,1.1080086,104170.0,104160.0,0.01016252]
[1738309855742,0.98404717,104170.0,104160.0,0.01116252]
[1738309855956,0.99132717,104170.0,104160.0,0.01116252]
[1738309856168,1.01332717,104170.0,104160.0,0.01016252]
[1738309856373,1.01732717,104170.0,104160.0,0.01016252]
[1738309856574,1.01832717,104170.0,104160.0,0.01016252]
[1738309860317,1.1903886,104170.0,104160.0,0.01016252]
[1738309861220,1.01832717,104170.0,104160.0,0.01016252]
[1738309862796,1.01858337,104170.0,104160.0,0.01016252]
[1738309863208,0.84558337,104170.0,104160.0,0.01016252]
[1738309863799,0.83930337,104170.0,104160.0,0.01016252]
[1738309863999,0.84558337,104170.0,104160.0,0.01016252]
[1738309864211,0.71534194,104170.0,104160.0,0.20331016]
[1738309864963,0.83930337,104170.0,104160.0,0.20331016]
[1738309865448,0.83430337,104170.0,104160.0,0.14136252]
[1738309865699,0.98530337,104170.0,104160.0,0.14236252]
[1738309865956,0.56634694,104170.0,104160.0,0.28733146]
[1738309866160,0.46914378,104170.0,104160.0,0.29537152]
[1738309866363,0.56738694,104170.0,104160.0,0.28537152]
[1738309866578,0.56738694,104170.0,104160.0,0.28637152]
[1738309866789,0.69134837,104170.0,104160.0,0.28637152]
[1738309867206,0.71138194,104170.0,104160.0,0.28637152]
[1738309867441,0.98534337,104170.0,104160.0,0.14236252]
[1738309867664,0.98534337,104170.0,104160.0,0.01116252]
[1738309867877,1.1093048,104170.0,104160.0,0.01116252]
[1738309868093,1.1385848,104170.0,104160.0,0.01116252]
[1738309868304,0.98534337,104170.0,104160.0,0.01116252]
[1738309868513,0.99162337,104170.0,104160.0,0.01016252]
[1738309868774,0.99066337,104170.0,104160.0,0.01116252]
[1738309868984,0.99466337,104170.0,104160.0,0.01116252]
[1738309869194,0.99466337,104170.0,104160.0,0.01016252]
[1738309869624,1.1196248,104170.0,104160.0,0.01016252]
[1738309870273,0.99566337,104170.0,104160.0,0.01016252]
[1738309870483,1.1196248,104170.0,104160.0,0.01016252]
[1738309870692,1.1133048,104170.0,104160.0,0.01016252]
[1738309870897,1.1196248,104170.0,104160.0,0.01016252]
[1738309871289,0.99566337,104170.0,104160.0,0.01016252]
[1738309872466,1.1196248,104170.0,104160.0,0.01016252]
[1738309875773,1.1196248,104170.0,104160.0,0.04957806]
[1738309875978,1.1196248,104170.0,104160.0,0.01016252]
[1738309885530,1.1133048,104170.0,104160.0,0.01016252]
[1738309885762,1.1196248,104170.0,104160.0,0.01016252]
[1738309890579,1.11958378,104170.0,104160.0,0.01016252]
[1738309892460,1.14258378,104170.0,104160.0,0.01016252]
[1738309893109,1.18828378,104170.0,104160.0,0.01016252]
[1738309893527,1.18728378,104170.0,104160.0,0.01016252]
[1738309894207,1.26858378,104170.0,104160.0,0.01016252]
[1738309894618,1.26458378,104170.0,104160.0,0.01016252]
[1738309895003,1.28158378,104170.0,104160.0,0.01016252]
[1738309895573,1.27358378,104170.0,104160.0,0.01016252]
[1738309895750,1.28258378,104170.0,104160.0,0.01016252]
[1738309897119,1.30154081,104170.0,104160.0,0.01016252]
[1738309901766,1.29522081,104170.0,104160.0,0.01016252]
[1738309901967,1.30154081,104170.0,104160.0,0.01016252]
[1738309904245,1.29522081,104170.0,104160.0,0.01016252]
[1738309904448,1.30154081,104170.0,104160.0,0.01016252]
[1738309905066,1.34608499,104170.0,104160.0,0.01016252]
[1738309905276,1.30154081,104170.0,104160.0,0.01016252]
[1738309906945,1.29522081,104170.0,104160.0,0.01016252]
[1738309907147,1.30154081,104170.0,104160.0,0.01016252]
[1738309908020,1.36035789,104170.0,104160.0,0.01016252]
[1738309908218,0.74744894,104160.0,104150.0,0.3839929]
[1738309908374,1.36351145,104160.0,104150.0,0.3839929]
[1738309908986,1.38351145,104160.0,104150.0,0.35687096]
[1738309909148,1.40851324,104160.0,104150.0,0.35687096]
[1738309909575,1.41751324,104160.0,104150.0,0.35687096]
[1738309909790,1.35869616,104160.0,104150.0,0.35687096]
[1738309910022,1.36501616,104160.0,104150.0,0.35687096]
[1738309910413,1.36501616,104160.0,104150.0,0.33591888]
[1738309911067,1.37401616,104160.0,104150.0,0.33591888]
[1738309912112,1.38375983,104160.0,104150.0,0.33591888]
[1738309913745,1.35875804,104160.0,104150.0,0.33591888]
[1738309914535,1.34975804,104160.0,104150.0,0.33338709]
[1738309914665,1.34343804,104160.0,104150.0,0.33338709]
[1738309915081,1.35867804,104160.0,104150.0,0.33338709]
[1738309915308,1.18569804,104160.0,104150.0,0.33338709]
[1738309915515,1.17397804,104160.0,104150.0,0.33338709]
[1738309915711,1.18297804,104160.0,104150.0,0.33338709]
[1738309915920,1.19197804,104160.0,104150.0,0.33338709]
[1738309916600,1.20601804,104160.0,104150.0,0.33338709]
[1738309916775,1.18301804,104160.0,104150.0,0.33338709]
[1738309916926,1.21501804,104160.0,104150.0,0.33338709]
[1738309917132,1.19969804,104160.0,104150.0,0.33338709]
[1738309917341,1.19701804,104160.0,104150.0,0.33338709]
[1738309917556,1.19201804,104160.0,104150.0,0.42097799]
[1738309917754,1.04205804,104160.0,104150.0,0.42097799]
[1738309918041,1.03305804,104160.0,104150.0,0.42097799]
[1738309918429,1.19205804,104160.0,104150.0,0.33338709]
[1738309919643,1.17599437,104160.0,104150.0,0.33338709]
[1738309919850,0.90203294,104160.0,104150.0,0.45768709]
[1738309920055,0.90835294,104160.0,104150.0,0.45768709]
[1738309920268,1.18231437,104160.0,104150.0,0.45768709]
[1738309920780,1.16431437,104160.0,104150.0,0.45768709]
[1738309920975,1.17231437,104160.0,104150.0,0.45768709]
[1738309921236,1.05103294,104160.0,104150.0,0.60171009]
[1738309921449,0.7459657,104160.0,104150.0,0.60171009]
[1738309921656,0.57203148,104160.0,104150.0,0.69906685]
[1738309921776,0.69599291,104160.0,104150.0,0.69906685]
[1738309921983,0.83200191,104160.0,104150.0,0.45768709]
[1738309922205,0.84100191,104160.0,104150.0,0.60171009]
[1738309922416,0.84900191,104160.0,104150.0,0.60171009]
[1738309922803,0.70499291,104160.0,104150.0,0.60171009]
[1738309923507,0.69599291,104160.0,104150.0,0.60171009]
[1738309923706,0.68799291,104160.0,104150.0,0.69906685]
[1738309923909,0.56803148,104160.0,104150.0,0.69906685]
[1738309924114,0.56503148,104160.0,104150.0,0.69906685]
[1738309924425,0.46984656,104160.0,104150.0,0.73206685]
[1738309924573,0.46984656,104160.0,104150.0,0.69906685]
[1738309924743,0.59280799,104160.0,104150.0,0.69906685]
[1738309924959,0.46884656,104160.0,104150.0,0.69906685]
[1738309925272,0.46984656,104160.0,104150.0,0.69906685]
[1738309925907,0.46984656,104160.0,104150.0,0.70906685]
[1738309926949,0.21364656,104160.0,104150.0,1.37810741]
[1738309927147,0.19570212,104160.0,104150.0,1.42950741]
[1738309927374,0.14530212,104160.0,104150.0,1.38010741]
[1738309927711,0.14530212,104160.0,104150.0,1.58110741]
[1738309928031,0.0002562,104170.0,104160.0,0.197009]
[1738309928235,0.0002562,104170.0,104160.0,0.29436576]
[1738309928442,0.0002562,104170.0,104160.0,0.25136576]
[1738309928596,0.4802662,104170.0,104160.0,0.25136576]
[1738309930624,0.4802662,104170.0,104160.0,0.25436576]
[1738309931038,0.4802662,104170.0,104160.0,0.25636576]
[1738309931616,0.4802662,104170.0,104160.0,0.25436576]
[1738309931817,0.4802662,104170.0,104160.0,0.25136576]
[1738309932025,0.4802662,104170.0,104160.0,0.25336576]
[1738309932370,0.4802662,104170.0,104160.0,0.25636576]
[1738309932592,0.4802662,104170.0,104160.0,0.25436576]
[1738309932973,0.48002925,104170.0,104160.0,0.25436576]
[1738309933614,0.48002925,104170.0,104160.0,0.25136576]
[1738309933826,0.48002925,104170.0,104160.0,0.25636576]
[1738309934212,0.48002925,104170.0,104160.0,0.25436576]
[1738309934555,0.57727241,104170.0,104160.0,0.24436576]
[1738309934973,0.57727241,104170.0,104160.0,0.24636576]
[1738309935386,0.57727241,104170.0,104160.0,0.24436576]
[1738309935603,0.84522884,104170.0,104160.0,0.10035676]
[1738309935860,0.84522884,104170.0,104160.0,0.24436576]
[1738309936531,0.72126741,104170.0,104160.0,0.24136576]
[1738309936747,0.72126741,104170.0,104160.0,0.24336576]
[1738309937025,0.84522884,104170.0,104160.0,0.004]
[1738309937880,0.99522884,104170.0,104160.0,0.004]
[1738309939850,0.99522884,104170.0,104160.0,0.002]
[1738309940146,0.294009,104160.0,104150.0,1.33194609]
[1738309940372,0.99509902,104160.0,104150.0,1.33194609]
[1738309940955,0.99509902,104160.0,104150.0,1.42930285]
[1738309941361,0.99609902,104160.0,104150.0,1.42930285]
[1738309941579,1.00009902,104160.0,104150.0,1.42930285]
[1738309942615,0.87613759,104160.0,104150.0,1.42930285]
[1738309943320,0.87213759,104160.0,104150.0,1.42930285]
[1738309943705,0.99609902,104160.0,104150.0,1.42930285]
[1738309943909,0.99609902,104160.0,104150.0,1.43030285]
[1738309945451,1.07899902,104160.0,104150.0,1.43030285]
[1738309947003,1.20296045,104160.0,104150.0,1.33294609]
[1738309947340,1.24936045,104160.0,104150.0,1.33294609]
[1738309947994,1.24936045,104160.0,104150.0,1.33194609]
[1738309948183,1.24836045,104160.0,104150.0,1.33194609]
[1738309948343,1.24936045,104160.0,104150.0,1.33194609]
[1738309948542,1.24936045,104160.0,104150.0,1.42930285]
[1738309948966,1.25336045,104160.0,104150.0,1.42930285]
[1738309949560,1.25336045,104160.0,104150.0,1.33194609]
[1738309958972,1.12939902,104160.0,104150.0,1.33194609]
[1738309959175,1.25336045,104160.0,104150.0,1.33194609]
[1738309972754,1.24963315,104160.0,104150.0,1.33194609]
[1738309974283,1.24963315,104160.0,104150.0,1.30694609]
[1738309974777,1.25353079,104160.0,104150.0,1.30694609]
[1738309975878,1.25349079,104160.0,104150.0,1.30694609]
[1738309977477,1.26313525,104160.0,104150.0,1.30694609]
[1738309979224,1.28613525,104160.0,104150.0,1.30694609]
[1738309980094,1.28513525,104160.0,104150.0,1.30694609]
[1738309980305,1.32466568,104160.0,104150.0,1.17884609]
[1738309980513,1.30466568,104160.0,104150.0,1.17884609]
[1738309980919,1.41802244,104160.0,104150.0,1.17884609]
[1738309981145,1.42702244,104160.0,104150.0,1.17884609]
[1738309981282,1.40702244,104160.0,104150.0,1.17884609]
[1738309981511,1.39802244,104160.0,104150.0,1.17884609]
[1738309981726,1.41402244,104160.0,104150.0,1.17884609]
[1738309982158,1.40702244,104160.0,104150.0,1.17884609]
[1738309982512,1.41602244,104160.0,104150.0,1.17884609]
[1738309983169,1.41602244,104160.0,104150.0,1.17835755]
[1738309989422,1.41627843,104160.0,104150.0,1.17835755]
[1738309994288,1.32520167,104160.0,104150.0,1.17835755]
[1738309994494,1.34520167,104160.0,104150.0,1.17835755]
[1738309994716,1.35140513,104160.0,104150.0,1.17835755]
[1738310000482,1.35140513,104160.0,104150.0,1.11829873]
[1738310011400,1.35140513,104160.0,104150.0,1.05823979]
[1738310011888,1.44876189,104160.0,104150.0,1.05823979]
[1738310013100,1.35140513,104160.0,104150.0,1.05823979]
[1738310013766,1.37924726,104160.0,104150.0,1.05823979]
[1738310014013,1.40611709,104160.0,104150.0,1.05823979]
[1738310017509,1.37199496,104160.0,104150.0,1.05823979]
[1738310017761,1.35140513,104160.0,104150.0,1.05823979]
[1738310018249,1.44876189,104160.0,104150.0,1.05823979]
[1738310019197,1.54976189,104160.0,104150.0,1.05823979]
[1738310019412,1.44876189,104160.0,104150.0,1.05823979]
[1738310023496,1.53452245,104160.0,104150.0,1.05823979]
[1738310024809,1.58215497,104160.0,104150.0,0.68802444]
[1738310025743,1.63539653,104160.0,104150.0,0.68802444]
[1738310026008,1.62639653,104160.0,104150.0,0.68802444]
[1738310026246,1.63539653,104160.0,104150.0,0.68802444]
[1738310026678,1.62639653,104160.0,104150.0,0.68802444]
[1738310026887,1.61739653,104160.0,104150.0,0.68802444]
[1738310027094,1.53163597,104160.0,104150.0,0.68802444]
[1738310027347,1.54063597,104160.0,104150.0,0.63631414]
[1738310027564,1.54063597,104160.0,104150.0,0.60781282]
[1738310027771,1.54963597,104160.0,104150.0,0.60781282]
[1738310028571,1.54963597,104160.0,104150.0,0.57354282]
[1738310029396,1.54963597,104160.0,104150.0,0.54346404]
[1738310029699,1.63539653,104160.0,104150.0,0.54346404]
[1738310031634,1.58215497,104160.0,104150.0,0.54346404]
[1738310032799,1.49639441,104160.0,104150.0,0.54346404]
[1738310033201,1.49639441,104160.0,104150.0,0.49462236]
[1738310034752,0.47869283,104150.0,104140.0,0.16196356]
[1738310034967,1.76717647,104150.0,104140.0,0.12584181]
[1738310035779,1.67795043,104150.0,104140.0,0.12584181]
[1738310035991,1.62951847,104150.0,104140.0,0.12584181]
[1738310036569,1.62947847,104150.0,104140.0,0.12584181]
[1738310036782,1.63847847,104150.0,104140.0,0.12584181]
[1738310037159,1.62847847,104150.0,104140.0,0.12584181]
[1738310037360,1.72583523,104150.0,104140.0,0.12584181]
[1738310037991,1.78954719,104150.0,104140.0,0.12584181]
[1738310039067,0.54963266,104140.0,104130.0,0.368]
[1738310039275,1.17655164,104140.0,104130.0,0.36179316]
[1738310039498,1.27205768,104140.0,104130.0,0.36179316]
[1738310039930,1.42205768,104140.0,104130.0,0.36179316]
[1738310040349,1.64280394,104140.0,104130.0,0.26127316]
[1738310040559,1.15576125,104140.0,104130.0,0.26127316]
[1738310040765,1.16204125,104140.0,104130.0,0.26127316]
[1738310041197,1.16476125,104140.0,104130.0,0.26127316]
[1738310041400,1.15576125,104140.0,104130.0,0.26127316]
[1738310041585,1.40043801,104140.0,104130.0,0.26127316]
[1738310041731,1.40943801,104140.0,104130.0,0.26127316]
[1738310041935,1.41843801,104140.0,104130.0,0.26127316]
[1738310042696,1.4282437,104140.0,104130.0,0.26127316]
[1738310045007,1.44752759,104140.0,104130.0,0.26127316]
[1738310046488,1.44752759,104140.0,104130.0,0.26139516]
[1738310048260,1.13039861,104140.0,104130.0,0.26139516]
[1738310048501,1.21183083,104140.0,104130.0,0.26139516]
[1738310048764,1.12411861,104140.0,104130.0,0.26139516]
[1738310049008,0.93739861,104140.0,104130.0,0.26139516]
[1738310049248,1.11039861,104140.0,104130.0,0.26139516]
[1738310049510,1.28918759,104140.0,104130.0,0.26139516]
[1738310049784,1.80429955,104140.0,104130.0,0.26139516]
[1738310050044,1.78429955,104140.0,104130.0,0.19821948]
[1738310050294,1.78433955,104140.0,104130.0,0.16743591]
[1738310050538,1.76633955,104140.0,104130.0,0.16743591]
[1738310050787,1.75633955,104140.0,104130.0,0.14339282]
[1738310051062,0.73895,104130.0,104120.0,0.40968567]
[1738310051315,1.70431325,104130.0,104120.0,0.36477493]
[1738310052166,1.61508721,104130.0,104120.0,0.36477493]
[1738310052381,1.62378849,104130.0,104120.0,0.36477493]
[1738310052931,1.63010849,104130.0,104120.0,0.36477493]
[1738310053138,1.63910849,104130.0,104120.0,0.36477493]
[1738310053340,1.58569525,104130.0,104120.0,0.36477493]
[1738310053570,1.68305201,104130.0,104120.0,0.36477493]
[1738310053986,1.69205201,104130.0,104120.0,0.36477493]
[1738310054346,1.71205201,104130.0,104120.0,0.36477493]
[1738310055813,1.63061979,104130.0,104120.0,0.36477493]
[1738310056021,1.31469525,104130.0,104120.0,0.36477493]
[1738310057561,1.22326303,104130.0,104120.0,0.36477493]
[1738310057761,1.17084303,104130.0,104120.0,0.36477493]
[1738310057963,1.08136303,104130.0,104120.0,0.36477493]
[1738310058409,0.92504303,104130.0,104120.0,0.36477493]
[1738310058606,0.93136303,104130.0,104120.0,0.36477493]
[1738310058739,0.90836303,104130.0,104120.0,0.36477493]